Workbook

Sheet Cogen ($875 kW)
A3: I. | B3: Assumptions | I3: Variable | J3: Value
B5: A) | C5: Capital Cost per kW of Capacity | I5: V | J5: 875 | K5: /kW | L5: JRB-Edited
B7: B) | C7: Weighted Cost of Capital (Workpaper S-2) | I7: R | J7: ='[1]Carrying Charge'!B10/100 -> 
B9: C) | C9: Carrying Charge Rate | I9: CCR | J9: =12.55% -> 0.1255 | L9: JRB-Edited, from Exhibit AEV-1, Carrying Charge at 20 year life
B11: D) | C11: Operation & Maintenance Cost per Year (Fixed & Variable) | I11: O | J11: =H124 -> 34.93 | K11: /kW
B13: E) | C13: Line Losses | I13: L | J13: =+F176 -> 
B15: F) | C15: Estimated Unit Life | I15: N | J15: 20 | K15: years | L15: JRB-Edited
B17: G) | C17: Present Value of Carrying Charge for $1 Investment for N years | I17: D | J17: =+H33 -> 
B19: H) | C19: Fixed Operation and Maintenance Cost Escalation Rate | I19: IO | J19: 0.02
B21: I) | C21: Construction Cost Escalation Rate | I21: IP | J21: =+J19 -> 0.02
A26: II. | B26: Calculation of Present Value of Carrying Charge
F32: =(1+J7)^J15-1 -> 
B33: D = | D33: =+J9 -> 0.1255 | E33: x | F33: ----------- | G33: = | H33: =ROUND(D33*F32/F34,4) -> 
F34: =J7*(1+J7)^J15 -> 
A36: III. | B36: Calculation of Unadjusted Monthly Avoided Cost of Capacity
C43: Where:
B67: Calculation for First Year
C69: T = | D69: 1
C70: S1 = | D70: =1-(1+J21)/(1+J7) ->  | E70: S4 = | F70: =J11*((1+J19)/(1+J7)) -> 
C71: S2 = | D71: =1-((1+J21)/(1+J7))^J15 ->  | E71: S5 = | F71: =(1+J19)^(D69-1) -> 1
C72: S3 = | D72: =(1+J21)^(D69-1) -> 1 | E72: S6 = | F72: =1-J13/2 -> 
B81: C = | D81: =(1/12)*(J17*J5*D70/D71*D72+F70*F71)/F72 -> 
B83: Calculation for Second Year
C85: T = | D85: 2
C86: S1 = | D86: =1-(1+J21)/(1+J7) ->  | E86: S4 = | F86: =J11*((1+J19)/(1+J7)) -> 
C87: S2 = | D87: =1-((1+J21)/(1+J7))^J15 ->  | E87: S5 = | F87: =(1+J19)^(D85-1) -> 1.02
C88: S3 = | D88: =(1+J21)^(D85-1) -> 1.02 | E88: S6 = | F88: =1-J13/2 -> 
B90: C = | D90: =(1/12)*(J17*J5*D86/D87*D88+F86*F87)/F88 -> 
B92: Calculation for Third Year
C94: T = | D94: 3
C95: S1 = | D95: =1-(1+J21)/(1+J7) ->  | E95: S4 = | F95: =J11*((1+J19)/(1+J7)) -> 
C96: S2 = | D96: =1-((1+J21)/(1+J7))^J15 ->  | E96: S5 = | F96: =(1+J19)^(D94-1) -> 1.0404
C97: S3 = | D97: =(1+J21)^(D94-1) -> 1.0404 | E97: S6 = | F97: =1-J13/2 -> 
B99: C = | D99: =(1/12)*(J17*J5*D95/D96*D97+F95*F96)/F97 -> 
B102: Three Year Average Avoided Cost of Capacity = | F102: =+(D81+D90+D99)/3 ->  | G102: on peak
B103: TOD Measurement
B105: Three Year Average Avoided Cost of Capacity = | F105: =+G154/I156*F102 ->  | G105: average
B106: Standard Measurement
A109: Cost Calculations (Support Page 1, Assumptions A & D)
A115: I. | B115: Operations & Maintenance Cost per kW (2020 Dollars)
C117: Fixed & Variable Operations & Maintenance Cost | H117: 17.72 | I117: mills/kWh
C118: Hours per Year | G118: x | H118: 8760 | I118: hours
C119: Unit Size | G119: x | H119: 490000 | I119: kW
C120: Capacity Factor | G120: x | H120: 0.25
C121: Planned Outage Rate | G121: x | H121: 0.1
C122: Total Variable O&M Cost | H122: =H117*(H118*(1-H121))*H119*H120/1000 -> 17113798.8 | I122: /year
C123: Unit Size | G123: / | H123: =+H119 -> 490000 | I123: kW
C124: Per Unit Variable O&M Cost | H124: =ROUND(H122/H123,2) -> 34.93 | I124: /kW
A132: I. | B132: Energy Payment Calculation * | G132: On-Peak | H132: Off-Peak | I132: Non-TOD
B135: A | C135: Potential Loss Savings
C137: Primary Losses | I137: =+H174 -> 
C138: Divided by 2 | H138: / | I138: 2
C139: Loss Adjustment (Potential Loss Savings) | I139: =+I137/I138 -> 
B144: B | C144: Time-of-Day Energy Payments
C146: Avoided Energy Costs (2020-2022 Average) | G146: 3.042 | H146: 2.265 | J146: ¢/kWh
C147: Divided by (1 - Loss Savings) | G147: =1-I139 ->  | H147: =G147 -> 
C148: Time-of-Day Energy Payments | G148: =ROUND(G146/G147,2) ->  | H148: =ROUND(H146/H147,2) ->  | J148: ¢/kWh
B151: C | C151: Non-Time-of-Day Energy Payment
C153: Time-of-Day Energy Payments | G153: =+G148 ->  | H153: =+H148 ->  | J153: ¢/kWh
C154: Hours per Year | F154: x | G154: 3650 | H154: 5110 | J154: hours
C155: Weighted Average of Hourly TOD Payments | G155: =ROUND(G153*G154,0) ->  | H155: =ROUND(H153*H154,0) ->  | I155: =+G155+H155 -> 
C156: Hours Per Year | I156: =+G154+H154 -> 8760
C157: Non-Time-of-Day Energy Payment | I157: =ROUND(I155/I156,2) ->  | J157: ¢/kWh
B160: * On-Peak Period is 7am - 9pm, Monday through Friday
B161: Off-Peak Period is all other hours
A165: II. | B165: Demand and Energy Loss Calculations **
D167: System | F167: Demand | H167: Energy
C169: Transmission | F169: ='[1]Demand Basis'!B15-'[1]Demand Basis'!E15 ->  | H169: ='[1]Energy Basis'!B15-'[1]Energy Basis'!E15 -> 
C171: Subtransmission | F171: ='[1]Demand Basis'!B15-'[1]Demand Basis'!D15 ->  | H171: ='[1]Energy Basis'!B15-'[1]Energy Basis'!D15 -> 
C174: Primary | F174: ='[1]Demand Basis'!B15-'[1]Demand Basis'!C15 ->  | H174: ='[1]Energy Basis'!B15-'[1]Energy Basis'!C15 -> 
C176: Compound Loss Factor | F176: =ROUND((1+F169)*(1+F171)*(1+F174)-1,3) ->  | H176: =ROUND((1+H169)*(1+H171)*(1+H174)-1,3) -> 
B179: ** Assuming COGEN/SPP Service at Primary
A182: I. | B182: Annual Carrying Charge Rates | G182: Variable | H182: Value
C184: Fixed Costs | H184: 0.1255 | J184: JRB-Edited, from Exhibit AEV-1, Carrying Charge at 20 Year Life
C185: O&M | H185: =+F354 -> 0.04596954238
C186: Carrying Costs | G186: CC | H186: =+H184+H185 -> 0.1714695424
A190: II. | B190: Charges
C192: Contingencies | H192: 0.05
C193: Stores Expense | H193: 0.26
C194: Total Charges on Material | G194: MC | H194: =+H192+H193 -> 0.31
C196: Labor | H196: =46%+10% -> 0.56
C197: Transportation Expense | H197: 0.22
C198: Total Charges on Labor | G198: LC | H198: =+H196+H197 -> 0.78
A202: III. | B202: Overheads
C204: Company Construction Overheads | G204: OC | H204: 0.23
A208: IV. | B208: Monthly Charge on Incremental Material
B210: IM = | D210: Incremental Material Cost
B211: IL = | D211: Incremental Labor Cost (50% of Material) = 0.5 x IM
B215: OR:
B220: Monthly Charge on IM = | E220: =ROUND((1+H204)*((1+H194)+(1+H198)*0.5)*H186/12,4) -> 0.0387 | F220: of Incremental Material Cost
A223: V. | B223: Monthly Meter Charges | H223: Incremental | I223: Monthly | K223: Average
H224: Material (IM) | I224: Charge | K224: Charge
I225: =+E220 -> 0.0387
B226: Standard Measurement
C227: Single Phase
D228: Option 2 - Primary - Transformer Rated | H228: 391 | I228: =ROUND(H228*I$225,2) -> 15.13
D229: Option 2 - Secondary - Self-Contained | H229: 38 | I229: =ROUND(H229*I$225,2) -> 1.47
D230: Option 3 - Primary - Transformer Rated | H230: 391 | I230: =ROUND(H230*I$225,2) -> 15.13
D231: Option 3 - Secondary - Transformer Rated | H231: 391 | I231: =ROUND(H231*I$225,2) -> 15.13
D232: Option 3 - Secondary - Self Contained | H232: 38 | I232: =ROUND(H232*I$225,2) -> 1.47
C233: Total | I233: =SUM(I228:I232) -> 48.33 | J233: / 5 = | K233: =ROUND(I233/5,2) -> 9.67
J234: Use: | K234: =K235 -> 9.25
J235: current | K235: 9.25
C236: Polyphase
D237: Option 2 - Primary - Transformer Rated | H237: 391 | I237: =ROUND(H237*I$225,2) -> 15.13
D238: Option 2 - Secondary - Self-Contained | H238: 230 | I238: =ROUND(H238*I$225,2) -> 8.9
D239: Option 3 - Primary - Transformer Rated (or Sec. >200 Amps) | H239: 391 | I239: =ROUND(H239*I$225,2) -> 15.13
D240: Option 3 - Secondary - Transformer Rated (Below 200 Amps) | H240: 391 | I240: =ROUND(H240*I$225,2) -> 15.13
D241: Option 3 - Secondary - Self Contained (Below 200 Amps) | H241: 230 | I241: =ROUND(H241*I$225,2) -> 8.9
C242: Total | I242: =SUM(I237:I241) -> 63.19 | J242: / 5 = | K242: =ROUND(I242/5,2) -> 12.64
J243: Use: | K243: =K244 -> 12.1
J244: current | K244: 12.1
B246: Time-of-Day Measurement
C247: Single Phase
D248: Option 2 - Primary - Transformer Rated | H248: 400 | I248: =ROUND(H248*I$225,2) -> 15.48
D249: Option 2 - Secondary - Self-Contained | H249: 96 | I249: =ROUND(H249*I$225,2) -> 3.72
D250: Option 3 - Primary - Transformer Rated | H250: 400 | I250: =ROUND(H250*I$225,2) -> 15.48
D251: Option 3 - Secondary - Transformer Rated | H251: 400 | I251: =ROUND(H251*I$225,2) -> 15.48
D252: Option 3 - Secondary - Self Contained | H252: 38 | I252: =ROUND(H252*I$225,2) -> 1.47
C253: Total | I253: =SUM(I248:I252) -> 51.63 | J253: / 5 = | K253: =ROUND(I253/5,2) -> 10.33
J254: Use: | K254: =K255 -> 9.85
J255: Current | K255: 9.85
C256: Polyphase
D257: Option 2 - Primary - Transformer Rated | H257: 400 | I257: =ROUND(H257*I$225,2) -> 15.48
D258: Option 2 - Secondary - Self-Contained | H258: 239 | I258: =ROUND(H258*I$225,2) -> 9.25
D259: Option 3 - Primary - Transformer Rated | H259: 400 | I259: =ROUND(H259*I$225,2) -> 15.48
D260: Option 3 - Secondary - Transformer Rated | H260: 400 | I260: =ROUND(H260*I$225,2) -> 15.48
D261: Option 3 - Secondary - Self Contained | H261: 239 | I261: =ROUND(H261*I$225,2) -> 9.25
C262: Total | I262: =SUM(I257:I261) -> 64.94 | J262: / 5 = | K262: =ROUND(I262/5,2) -> 12.99
J263: Use: | K263: =K264 -> 12.4
J264: current | K264: 12.4
A306: I. | B306: Calculation of Cost Escalation Rates *
H307: Cumulative
H308: Escalation
D309: Year | F309: Rate | H309: Rates
D311: 2017 | F311: 0.01933445388 | H311: =(1+F311) -> 1.019334454
D312: =+D311+1 -> 2018 | F312: 0.02550759463 | H312: =H311*(1+F312) -> 1.045335224
D313: 2019 | F313: 0.02793526201 | H313: 1.074536937
D314: 2020 | F314: 0.0247136519 | H314: 1.101092669
D315: 2021 | F315: 0.0190444947 | H315: 1.122062423
D316: 2022 | F316: 0.01656221964 | H316: 1.140646267
D317: 2023 | F317: 0.01865173624 | H317: 1.1619213
D318: 2024 | F318: 0.01886100804 | H318: 1.183836307
D319: 2025 | F319: 0.01949770704 | H319: 1.206918401
D320: 2026 | F320: 0.0200460666 | H320: 1.231112367
D321: 2027 | F321: 0.02009125519 | H321: 1.25584696
D322: 2028 | F322: 0.02032285923 | H322: 1.281369361
D323: 2029 | F323: 0.02049108836 | H323: 1.307626014
D324: 2030 | F324: 0.0202152145 | H324: 1.334059954
D325: 2031 | F325: =+F324 -> 0.0202152145 | H325: 1.361028262
D326: 2032 | F326: 0.0202152145 | H326: 1.388541741
D327: 2033 | F327: 0.0202152145 | H327: 1.41661141
D328: 2034 | F328: 0.0202152145 | H328: 1.445248513
D329: 2035 | F329: 0.0202152145 | H329: 1.474464522
D330: 2036 | F330: 0.0202152145 | H330: 1.504271139
D331: 2037 | F331: 0.0202152145 | H331: 1.534680302
D332: 2038 | F332: 0.0202152145 | H332: 1.565704194
D333: 2039 | F333: 0.0202152145 | H333: 1.59735524
D334: 2040 | F334: 0.0202152145 | H334: 1.629646119
D335: 2041 | F335: 0.0202152145 | H335: 1.662589765
D338: Compound Escalation Rate: | F338: =FIXED(D311,0,1)&" to "&FIXED(D335,0,1)&" =" -> 2017 to 2041 = | G338: =+H335 -> 1.662589765
D340: Number of Years | G340: =DATEDIF(DATE(D311,1,1),DATE(D335+1,1,1),"y") -> 25
D342: Average Rate (25th Root) | G342: =ROUND(G338^(1/G340)-1,3) -> 0.021
B345: * Based upon Moody's Economy.com, GDP Chain Price Deflator
A348: II. | B348: Calculation of Meter O&M Expense as a % of Original Cost (Per Books Total Company Values)
D350: Account 586 - Operation | F350: 1066179
D351: Account 597 - Maintenance | F351: 77731
D352: Total O&M | F352: =SUM(F350:F351) -> 1143910
D353: Account 370 - Meter Plant | F353: 24884085
D354: O&M Percentage | F354: =F352/F353 -> 0.04596954238

Sheet Cogen ($799 kW)
A3: I. | B3: Assumptions | I3: Variable | J3: Value
B5: A) | C5: Capital Cost per kW of Capacity | I5: V | J5: 799 | K5: /kW | L5: JRB-Edited
B7: B) | C7: Weighted Cost of Capital (Workpaper S-2) | I7: R | J7: ='[1]Carrying Charge'!B10/100 -> 
B9: C) | C9: Carrying Charge Rate | I9: CCR | J9: =12.55% -> 0.1255 | L9: JRB-Edited, from Exhibit AEV-1, Carrying Charge
B11: D) | C11: Operation & Maintenance Cost per Year (Fixed & Variable) | I11: O | J11: =H124 -> 34.93 | K11: /kW
B13: E) | C13: Line Losses | I13: L | J13: =+F176 -> 
B15: F) | C15: Estimated Unit Life | I15: N | J15: 20 | K15: years | L15: JRB-Edited
B17: G) | C17: Present Value of Carrying Charge for $1 Investment for N years | I17: D | J17: =+H33 -> 
B19: H) | C19: Fixed Operation and Maintenance Cost Escalation Rate | I19: IO | J19: 0.02
B21: I) | C21: Construction Cost Escalation Rate | I21: IP | J21: =+J19 -> 0.02
A26: II. | B26: Calculation of Present Value of Carrying Charge
F32: =(1+J7)^J15-1 -> 
B33: D = | D33: =+J9 -> 0.1255 | E33: x | F33: ----------- | G33: = | H33: =ROUND(D33*F32/F34,4) -> 
F34: =J7*(1+J7)^J15 -> 
A36: III. | B36: Calculation of Unadjusted Monthly Avoided Cost of Capacity
C43: Where:
B67: Calculation for First Year
C69: T = | D69: 1
C70: S1 = | D70: =1-(1+J21)/(1+J7) ->  | E70: S4 = | F70: =J11*((1+J19)/(1+J7)) -> 
C71: S2 = | D71: =1-((1+J21)/(1+J7))^J15 ->  | E71: S5 = | F71: =(1+J19)^(D69-1) -> 1
C72: S3 = | D72: =(1+J21)^(D69-1) -> 1 | E72: S6 = | F72: =1-J13/2 -> 
B81: C = | D81: =(1/12)*(J17*J5*D70/D71*D72+F70*F71)/F72 -> 
B83: Calculation for Second Year
C85: T = | D85: 2
C86: S1 = | D86: =1-(1+J21)/(1+J7) ->  | E86: S4 = | F86: =J11*((1+J19)/(1+J7)) -> 
C87: S2 = | D87: =1-((1+J21)/(1+J7))^J15 ->  | E87: S5 = | F87: =(1+J19)^(D85-1) -> 1.02
C88: S3 = | D88: =(1+J21)^(D85-1) -> 1.02 | E88: S6 = | F88: =1-J13/2 -> 
B90: C = | D90: =(1/12)*(J17*J5*D86/D87*D88+F86*F87)/F88 -> 
B92: Calculation for Third Year
C94: T = | D94: 3
C95: S1 = | D95: =1-(1+J21)/(1+J7) ->  | E95: S4 = | F95: =J11*((1+J19)/(1+J7)) -> 
C96: S2 = | D96: =1-((1+J21)/(1+J7))^J15 ->  | E96: S5 = | F96: =(1+J19)^(D94-1) -> 1.0404
C97: S3 = | D97: =(1+J21)^(D94-1) -> 1.0404 | E97: S6 = | F97: =1-J13/2 -> 
B99: C = | D99: =(1/12)*(J17*J5*D95/D96*D97+F95*F96)/F97 -> 
B102: Three Year Average Avoided Cost of Capacity = | F102: =+(D81+D90+D99)/3 ->  | G102: on peak
B103: TOD Measurement
B105: Three Year Average Avoided Cost of Capacity = | F105: =+G154/I156*F102 ->  | G105: average
B106: Standard Measurement
A109: Cost Calculations (Support Page 1, Assumptions A & D)
A115: I. | B115: Operations & Maintenance Cost per kW (2020 Dollars)
C117: Fixed & Variable Operations & Maintenance Cost | H117: 17.72 | I117: mills/kWh
C118: Hours per Year | G118: x | H118: 8760 | I118: hours
C119: Unit Size | G119: x | H119: 490000 | I119: kW
C120: Capacity Factor | G120: x | H120: 0.25
C121: Planned Outage Rate | G121: x | H121: 0.1
C122: Total Variable O&M Cost | H122: =H117*(H118*(1-H121))*H119*H120/1000 -> 17113798.8 | I122: /year
C123: Unit Size | G123: / | H123: =+H119 -> 490000 | I123: kW
C124: Per Unit Variable O&M Cost | H124: =ROUND(H122/H123,2) -> 34.93 | I124: /kW
A132: I. | B132: Energy Payment Calculation * | G132: On-Peak | H132: Off-Peak | I132: Non-TOD
B135: A | C135: Potential Loss Savings
C137: Primary Losses | I137: =+H174 -> 
C138: Divided by 2 | H138: / | I138: 2
C139: Loss Adjustment (Potential Loss Savings) | I139: =+I137/I138 -> 
B144: B | C144: Time-of-Day Energy Payments
C146: Avoided Energy Costs (2020-2022 Average) | G146: 3.042 | H146: 2.265 | J146: ¢/kWh
C147: Divided by (1 - Loss Savings) | G147: =1-I139 ->  | H147: =G147 -> 
C148: Time-of-Day Energy Payments | G148: =ROUND(G146/G147,2) ->  | H148: =ROUND(H146/H147,2) ->  | J148: ¢/kWh
B151: C | C151: Non-Time-of-Day Energy Payment
C153: Time-of-Day Energy Payments | G153: =+G148 ->  | H153: =+H148 ->  | J153: ¢/kWh
C154: Hours per Year | F154: x | G154: 3650 | H154: 5110 | J154: hours
C155: Weighted Average of Hourly TOD Payments | G155: =ROUND(G153*G154,0) ->  | H155: =ROUND(H153*H154,0) ->  | I155: =+G155+H155 -> 
C156: Hours Per Year | I156: =+G154+H154 -> 8760
C157: Non-Time-of-Day Energy Payment | I157: =ROUND(I155/I156,2) ->  | J157: ¢/kWh
B160: * On-Peak Period is 7am - 9pm, Monday through Friday
B161: Off-Peak Period is all other hours
A165: II. | B165: Demand and Energy Loss Calculations **
D167: System | F167: Demand | H167: Energy
C169: Transmission | F169: ='[1]Demand Basis'!B15-'[1]Demand Basis'!E15 ->  | H169: ='[1]Energy Basis'!B15-'[1]Energy Basis'!E15 -> 
C171: Subtransmission | F171: ='[1]Demand Basis'!B15-'[1]Demand Basis'!D15 ->  | H171: ='[1]Energy Basis'!B15-'[1]Energy Basis'!D15 -> 
C174: Primary | F174: ='[1]Demand Basis'!B15-'[1]Demand Basis'!C15 ->  | H174: ='[1]Energy Basis'!B15-'[1]Energy Basis'!C15 -> 
C176: Compound Loss Factor | F176: =ROUND((1+F169)*(1+F171)*(1+F174)-1,3) ->  | H176: =ROUND((1+H169)*(1+H171)*(1+H174)-1,3) -> 
B179: ** Assuming COGEN/SPP Service at Primary
A182: I. | B182: Annual Carrying Charge Rates | G182: Variable | H182: Value
C184: Fixed Costs | H184: 0.1255 | J184: JRB-Edited, from Exhibit AEV-1, Carrying Charge at 20 Year Life
C185: O&M | H185: =+F354 -> 0.04596954238
C186: Carrying Costs | G186: CC | H186: =+H184+H185 -> 0.1714695424
A190: II. | B190: Charges
C192: Contingencies | H192: 0.05
C193: Stores Expense | H193: 0.26
C194: Total Charges on Material | G194: MC | H194: =+H192+H193 -> 0.31
C196: Labor | H196: =46%+10% -> 0.56
C197: Transportation Expense | H197: 0.22
C198: Total Charges on Labor | G198: LC | H198: =+H196+H197 -> 0.78
A202: III. | B202: Overheads
C204: Company Construction Overheads | G204: OC | H204: 0.23
A208: IV. | B208: Monthly Charge on Incremental Material
B210: IM = | D210: Incremental Material Cost
B211: IL = | D211: Incremental Labor Cost (50% of Material) = 0.5 x IM
B215: OR:
B220: Monthly Charge on IM = | E220: =ROUND((1+H204)*((1+H194)+(1+H198)*0.5)*H186/12,4) -> 0.0387 | F220: of Incremental Material Cost
A223: V. | B223: Monthly Meter Charges | H223: Incremental | I223: Monthly | K223: Average
H224: Material (IM) | I224: Charge | K224: Charge
I225: =+E220 -> 0.0387
B226: Standard Measurement
C227: Single Phase
D228: Option 2 - Primary - Transformer Rated | H228: 391 | I228: =ROUND(H228*I$225,2) -> 15.13
D229: Option 2 - Secondary - Self-Contained | H229: 38 | I229: =ROUND(H229*I$225,2) -> 1.47
D230: Option 3 - Primary - Transformer Rated | H230: 391 | I230: =ROUND(H230*I$225,2) -> 15.13
D231: Option 3 - Secondary - Transformer Rated | H231: 391 | I231: =ROUND(H231*I$225,2) -> 15.13
D232: Option 3 - Secondary - Self Contained | H232: 38 | I232: =ROUND(H232*I$225,2) -> 1.47
C233: Total | I233: =SUM(I228:I232) -> 48.33 | J233: / 5 = | K233: =ROUND(I233/5,2) -> 9.67
J234: Use: | K234: =K235 -> 9.25
J235: current | K235: 9.25
C236: Polyphase
D237: Option 2 - Primary - Transformer Rated | H237: 391 | I237: =ROUND(H237*I$225,2) -> 15.13
D238: Option 2 - Secondary - Self-Contained | H238: 230 | I238: =ROUND(H238*I$225,2) -> 8.9
D239: Option 3 - Primary - Transformer Rated (or Sec. >200 Amps) | H239: 391 | I239: =ROUND(H239*I$225,2) -> 15.13
D240: Option 3 - Secondary - Transformer Rated (Below 200 Amps) | H240: 391 | I240: =ROUND(H240*I$225,2) -> 15.13
D241: Option 3 - Secondary - Self Contained (Below 200 Amps) | H241: 230 | I241: =ROUND(H241*I$225,2) -> 8.9
C242: Total | I242: =SUM(I237:I241) -> 63.19 | J242: / 5 = | K242: =ROUND(I242/5,2) -> 12.64
J243: Use: | K243: =K244 -> 12.1
J244: current | K244: 12.1
B246: Time-of-Day Measurement
C247: Single Phase
D248: Option 2 - Primary - Transformer Rated | H248: 400 | I248: =ROUND(H248*I$225,2) -> 15.48
D249: Option 2 - Secondary - Self-Contained | H249: 96 | I249: =ROUND(H249*I$225,2) -> 3.72
D250: Option 3 - Primary - Transformer Rated | H250: 400 | I250: =ROUND(H250*I$225,2) -> 15.48
D251: Option 3 - Secondary - Transformer Rated | H251: 400 | I251: =ROUND(H251*I$225,2) -> 15.48
D252: Option 3 - Secondary - Self Contained | H252: 38 | I252: =ROUND(H252*I$225,2) -> 1.47
C253: Total | I253: =SUM(I248:I252) -> 51.63 | J253: / 5 = | K253: =ROUND(I253/5,2) -> 10.33
J254: Use: | K254: =K255 -> 9.85
J255: Current | K255: 9.85
C256: Polyphase
D257: Option 2 - Primary - Transformer Rated | H257: 400 | I257: =ROUND(H257*I$225,2) -> 15.48
D258: Option 2 - Secondary - Self-Contained | H258: 239 | I258: =ROUND(H258*I$225,2) -> 9.25
D259: Option 3 - Primary - Transformer Rated | H259: 400 | I259: =ROUND(H259*I$225,2) -> 15.48
D260: Option 3 - Secondary - Transformer Rated | H260: 400 | I260: =ROUND(H260*I$225,2) -> 15.48
D261: Option 3 - Secondary - Self Contained | H261: 239 | I261: =ROUND(H261*I$225,2) -> 9.25
C262: Total | I262: =SUM(I257:I261) -> 64.94 | J262: / 5 = | K262: =ROUND(I262/5,2) -> 12.99
J263: Use: | K263: =K264 -> 12.4
J264: current | K264: 12.4
A306: I. | B306: Calculation of Cost Escalation Rates *
H307: Cumulative
H308: Escalation
D309: Year | F309: Rate | H309: Rates
D311: 2017 | F311: 0.01933445388 | H311: =(1+F311) -> 1.019334454
D312: =+D311+1 -> 2018 | F312: 0.02550759463 | H312: =H311*(1+F312) -> 1.045335224
D313: 2019 | F313: 0.02793526201 | H313: 1.074536937
D314: 2020 | F314: 0.0247136519 | H314: 1.101092669
D315: 2021 | F315: 0.0190444947 | H315: 1.122062423
D316: 2022 | F316: 0.01656221964 | H316: 1.140646267
D317: 2023 | F317: 0.01865173624 | H317: 1.1619213
D318: 2024 | F318: 0.01886100804 | H318: 1.183836307
D319: 2025 | F319: 0.01949770704 | H319: 1.206918401
D320: 2026 | F320: 0.0200460666 | H320: 1.231112367
D321: 2027 | F321: 0.02009125519 | H321: 1.25584696
D322: 2028 | F322: 0.02032285923 | H322: 1.281369361
D323: 2029 | F323: 0.02049108836 | H323: 1.307626014
D324: 2030 | F324: 0.0202152145 | H324: 1.334059954
D325: 2031 | F325: =+F324 -> 0.0202152145 | H325: 1.361028262
D326: 2032 | F326: 0.0202152145 | H326: 1.388541741
D327: 2033 | F327: 0.0202152145 | H327: 1.41661141
D328: 2034 | F328: 0.0202152145 | H328: 1.445248513
D329: 2035 | F329: 0.0202152145 | H329: 1.474464522
D330: 2036 | F330: 0.0202152145 | H330: 1.504271139
D331: 2037 | F331: 0.0202152145 | H331: 1.534680302
D332: 2038 | F332: 0.0202152145 | H332: 1.565704194
D333: 2039 | F333: 0.0202152145 | H333: 1.59735524
D334: 2040 | F334: 0.0202152145 | H334: 1.629646119
D335: 2041 | F335: 0.0202152145 | H335: 1.662589765
D338: Compound Escalation Rate: | F338: =FIXED(D311,0,1)&" to "&FIXED(D335,0,1)&" =" -> 2017 to 2041 = | G338: =+H335 -> 1.662589765
D340: Number of Years | G340: =DATEDIF(DATE(D311,1,1),DATE(D335+1,1,1),"y") -> 25
D342: Average Rate (25th Root) | G342: =ROUND(G338^(1/G340)-1,3) -> 0.021
B345: * Based upon Moody's Economy.com, GDP Chain Price Deflator
A348: II. | B348: Calculation of Meter O&M Expense as a % of Original Cost (Per Books Total Company Values)
D350: Account 586 - Operation | F350: 1066179
D351: Account 597 - Maintenance | F351: 77731
D352: Total O&M | F352: =SUM(F350:F351) -> 1143910
D353: Account 370 - Meter Plant | F353: 24884085
D354: O&M Percentage | F354: =F352/F353 -> 0.04596954238

Sheet Sheet1
